bitfinex/quotes_SOLUSD_20220104
["timestamp","ask_amount","ask_price","bid_price","bid_amount"]
[1641300455066,1.2825,170.98,170.89,1.42669368]
[1641300455465,1.2825,170.98,170.89,2.18669368]
[1641300455966,1.2825,170.98,170.9,1.42669368]
[1641300456470,1.2825,170.98,170.9,2.18669368]
[1641300456667,24.9422,170.99,170.9,2.18669368]
[1641300456868,24.9422,170.99,170.91,1.42669368]
[1641300457068,24.9422,170.99,170.91,1.68669368]
[1641300457269,24.9422,170.99,170.91,2.18669368]
[1641300457468,24.9422,170.99,170.92,1.42669368]
[1641300457871,24.9422,170.99,170.92,0.76]
[1641300458371,24.9422,170.99,170.92,0.26]
[1641300458571,24.9422,170.99,170.9,10.65669368]
[1641300459272,24.9422,170.99,170.9,10.39669368]
[1641300459473,24.9422,170.99,170.9,8.97]
[1641300459972,25.2022,170.99,170.9,0.5]
[1641300460373,25.2022,170.99,170.87,1.92669368]
[1641300460572,24.9422,170.99,170.87,1.68669368]
[1641300460772,24.9422,170.99,170.87,2.18669368]
[1641300460972,25.2022,170.99,170.87,1.92669368]
[1641300461373,2.49886977,170.97,170.87,1.92669368]
[1641300461575,2.75886977,170.97,170.87,1.92669368]
[1641300462773,2.49886977,170.97,170.87,1.92669368]
[1641300463472,2.49886977,170.97,170.87,2.18669368]
[1641300467073,1.3135,170.98,170.87,2.18669368]
[1641300468075,2.35837146,170.97,170.87,2.18669368]
[1641300469176,1.3135,170.98,170.87,2.18669368]
[1641300469375,1.3135,170.98,170.88,8.47]
[1641300469576,1.3135,170.98,170.88,8.73]
[1641300469808,1.3135,170.98,170.89,1.42669368]
[1641300469977,1.3135,170.98,170.89,1.68669368]
[1641300470177,3.70007104,170.98,170.89,31.95070885]
[1641300470578,23.7126,170.97,170.9,1.42669368]
[1641300470977,23.7126,170.97,170.9,2.18669368]
[1641300474086,23.7126,170.97,170.9,0.5]
[1641300474288,23.7126,170.97,170.88,10.39669368]
[1641300474791,23.7126,170.97,170.88,0.5]
[1641300474991,31.2066,170.97,170.88,0.5]
[1641300475189,31.7066,170.97,170.85,0.5]
[1641300475389,31.7066,170.97,170.84,0.5]
[1641300475590,56.1707,170.97,170.84,0.5]
[1641300475791,56.1707,170.97,170.81,10.39669368]
[1641300475990,56.1707,170.97,170.81,8.47]
[1641300476191,1.3333,170.96,170.81,8.47]
[1641300476390,2.46914834,170.95,170.81,8.47]
[1641300476591,104.54094834,170.95,170.81,8.73]
[1641300476790,105.04094834,170.95,170.81,10.15669368]
[1641300477191,27.2464984,170.93,170.81,10.15669368]
[1641300477418,3.01876106,170.91,170.81,10.39669368]
[1641300479020,3.01876106,170.91,170.81,10.65669368]
[1641300485226,3.01876106,170.91,170.81,10.39669368]
[1641300486430,3.01876106,170.91,170.81,8.97]
[1641300487435,3.01876106,170.91,170.81,9.23]
[1641300489635,3.01876106,170.91,170.79,1.42669368]
[1641300489835,3.27876106,170.91,170.78,7.696e-05]
[1641300490036,1.2321,170.9,170.78,7.696e-05]
[1641300490238,6.3531,170.9,170.78,7.696e-05]
[1641300490435,7.1131,170.9,170.78,7.696e-05]
[1641300490835,23.4,170.89,170.78,7.696e-05]
[1641300491038,23.4,170.89,170.78,1.42677064]
[1641300491236,2.71797567,170.88,170.78,1.42677064]
[1641300491936,2.97797567,170.88,170.78,1.42677064]
[1641300492136,23.9987,170.87,170.78,0.76007696]
[1641300492335,24.79249215,170.86,170.78,0.50007696]
[1641300492639,23.0639,170.85,170.78,0.50007696]
[1641300492835,23.0639,170.85,170.78,7.696e-05]
[1641300493039,23.0639,170.85,170.78,1.42677064]
[1641300493334,23.0639,170.85,170.78,2.18677064]
[1641300493735,25.92884058,170.85,170.78,0.76007696]
[1641300493936,25.92884058,170.85,170.78,0.26007696]
[1641300494137,25.92884058,170.85,170.78,7.696e-05]
[1641300494338,23.0639,170.85,170.78,7.696e-05]
[1641300501945,23.0639,170.85,170.78,1.42677064]
[1641300502145,1.3414,170.87,170.78,1.42677064]
[1641300502345,73.4822,170.89,170.78,2.18677064]
[1641300502753,2.74894799,170.88,170.79,22.60399389]
[1641300502948,4.06774799,170.88,170.79,23.36399389]
[1641300507373,4.06774799,170.88,170.79,0.76]
[1641300507575,4.06774799,170.88,170.78,10.65677064]
[1641300507775,4.06774799,170.88,170.78,9.23007696]
[1641300507979,4.06774799,170.88,170.78,8.97007696]
[1641300508177,4.32774799,170.88,170.78,8.97007696]
[1641300508876,4.06774799,170.88,170.78,8.97007696]
[1641300509277,4.06774799,170.88,170.78,9.23007696]
[1641300510381,74.9452,170.93,170.78,9.23007696]
[1641300510587,0.02,170.93,170.79,25.06509368]
[1641300510784,0.02,170.93,170.8,9.7664]
[1641300510981,0.02,170.93,170.8,21.41076634]
[1641300511181,0.02,170.93,170.81,1.42669368]
[1641300511385,0.02,170.93,170.82,39.1277468]
[1641300511580,0.02,170.93,170.82,39.3877468]
[1641300511784,0.02,170.93,170.82,48.6640468]
[1641300512184,2.15318559,170.95,170.82,49.9304468]
[1641300512883,1.3242,170.94,170.82,49.9304468]
[1641300513087,1.3242,170.94,170.82,41.1541468]
[1641300514186,1.3242,170.94,170.82,64.6916468]
[1641300516890,1.3242,170.94,170.82,64.4316468]
[1641300518490,1.3242,170.94,170.82,64.6916468]
[1641300519590,1.5842,170.94,170.82,64.4316468]
[1641300521995,1.5842,170.94,170.82,41.1541468]
[1641300522324,1.5842,170.94,170.82,39.8877468]
[1641300523697,1.5842,170.94,170.82,8.97]
[1641300524996,1.5842,170.94,170.82,9.23]
[1641300528304,1.5842,170.94,170.79,8.47]
[1641300528501,1.5842,170.94,170.78,7.696e-05]
[1641300528502,2.87963034,170.92,170.78,7.696e-05]
[1641300528700,8.47,170.91,170.78,7.696e-05]
[1641300528903,10.39669368,170.91,170.78,7.696e-05]
[1641300529099,10.65669368,170.91,170.78,7.696e-05]
[1641300529300,51.09049368,170.9,170.78,7.696e-05]
[1641300529501,8.47,170.89,170.78,7.696e-05]
[1641300530000,9.23,170.89,170.78,7.696e-05]
[1641300530204,1.2516,170.88,170.78,7.696e-05]
[1641300530401,9.7216,170.88,170.78,7.696e-05]
[1641300530604,9.9816,170.88,170.78,7.696e-05]
[1641300530804,24.235,170.87,170.78,7.696e-05]
[1641300531106,24.495,170.87,170.78,7.696e-05]
[1641300531707,78.5222,170.86,170.78,7.696e-05]
[1641300532004,23.8835,170.85,170.78,7.696e-05]
[1641300532404,24.1435,170.85,170.78,7.696e-05]
[1641300532806,1.3297,170.84,170.78,7.696e-05]
[1641300533004,1.5897,170.84,170.78,7.696e-05]
[1641300533605,1.3297,170.84,170.78,7.696e-05]
[1641300533806,23.8835,170.85,170.78,7.696e-05]
[1641300535206,78.5222,170.86,170.78,7.696e-05]
[1641300535809,24.8008,170.85,170.78,7.696e-05]
[1641300537616,26.1337,170.85,170.78,7.696e-05]
[1641300541428,24.8008,170.85,170.78,7.696e-05]
[1641300541729,78.5222,170.86,170.78,7.696e-05]
[1641300542128,1.2738,170.88,170.79,8.47]
[1641300542429,1.2538,170.88,170.79,8.97]
[1641300542627,1.2538,170.88,170.8,27.88850526]
[1641300542828,3.62033108,170.88,170.8,28.38850526]
[1641300543027,3.62033108,170.88,170.8,28.64850526]
[1641300544130,3.62033108,170.88,170.8,0.76]
[1641300544331,3.62033108,170.88,170.8,0.26]
[1641300544532,3.62033108,170.88,170.79,9.23]
[1641300546949,3.88033108,170.88,170.79,9.23]
[1641300548847,3.62033108,170.88,170.79,9.23]
[1641300549050,3.62033108,170.88,170.79,33.63369321]
[1641300551353,3.62033108,170.88,170.79,9.23]
[1641300566913,3.62033108,170.88,170.79,8.73]
[1641300568119,3.62033108,170.88,170.79,9.23]
[1641300573823,2.36653108,170.88,170.79,10.65669368]
[1641300578250,2.36653108,170.88,170.79,8.47]
[1641300578451,7.36053108,170.88,170.78,7.696e-05]
[1641300579250,24.4341,170.87,170.78,7.696e-05]
[1641300579549,24.6941,170.87,170.78,7.696e-05]
[1641300581456,24.4341,170.87,170.78,7.696e-05]
[1641300582352,24.6941,170.87,170.78,7.696e-05]
[1641300582563,24.4341,170.87,170.78,7.696e-05]
[1641300586060,24.4341,170.87,170.78,1.42677064]
[1641300586260,24.4341,170.87,170.78,2.18677064]
[1641300586861,26.88245739,170.87,170.78,2.18677064]
[1641300587763,24.4341,170.87,170.78,2.18677064]
[1641300587964,23.13923307,170.91,170.78,2.18677064]
[1641300588169,26.1048,170.9,170.79,8.47]
[1641300588368,26.1048,170.9,170.8,26.10646175]
[1641300588668,26.1048,170.9,170.8,27.79315543]
[1641300588868,2.21537487,170.89,170.81,1.42669368]
[1641300589067,2.21537487,170.89,170.81,1.68669368]
[1641300589271,2.21537487,170.89,170.81,2.18669368]
[1641300594798,2.21537487,170.89,170.81,1.92669368]
[1641300598104,2.21537487,170.89,170.81,0.76]
[1641300598507,2.21537487,170.89,170.79,10.4561]
[1641300599107,1.2748,170.88,170.79,10.4561]
[1641300601712,1.5348,170.88,170.79,10.1961]
[1641300602113,1.2748,170.88,170.79,10.1961]
[1641300602311,1.2748,170.88,170.79,11.62279368]
[1641300603112,1.2748,170.88,170.79,11.88279368]
[1641300603313,1.2748,170.88,170.79,10.65669368]
[1641300609818,1.2748,170.88,170.79,9.23]
[1641300611226,1.2748,170.88,170.79,10.65669368]
[1641300614729,1.2748,170.88,170.79,9.23]
[1641300617830,1.2748,170.88,170.8,1.42669368]
[1641300618029,1.2748,170.88,170.8,10.15669368]
[1641300618233,24.861,170.9,170.8,10.65669368]
[1641300618430,103.7015,170.92,170.81,1.42669368]
[1641300618631,103.7015,170.92,170.82,8.47]
[1641300618632,127.1528,170.92,170.82,8.47]
[1641300618829,127.1528,170.92,170.82,8.97]
[1641300619034,127.1528,170.92,170.82,9.23]
[1641300619234,127.1528,170.92,170.83,26.28171724]
[1641300619431,128.499,170.92,170.84,8.47]
[1641300619861,128.499,170.92,170.84,9.23]
[1641300620261,23.4513,170.92,170.84,10.65669368]
[1641300621062,26.22306744,170.92,170.84,9.23]
[1641300623065,23.4513,170.92,170.84,9.23]
[1641300625266,24.7568,170.92,170.84,9.23]
[1641300625669,24.7568,170.92,170.81,6.23001724]
[1641300625869,24.7568,170.92,170.83,0.26]
[1641300626175,24.7568,170.92,170.84,8.47]
[1641300627367,24.7568,170.92,170.84,8.97]
[1641300627569,48.46385561,170.92,170.84,9.23]
[1641300635375,48.46385561,170.92,170.84,8.97]
[1641300636077,48.46385561,170.92,170.84,0.5]
[1641300636277,48.46385561,170.92,170.81,32.474]
[1641300636475,48.72385561,170.92,170.81,32.474]
[1641300636676,48.46385561,170.92,170.81,32.474]
[1641300636875,48.46385561,170.92,170.81,32.734]
[1641300637475,48.72385561,170.92,170.81,32.734]
[1641300637675,48.46385561,170.92,170.81,32.734]
[1641300637877,48.46385561,170.92,170.81,34.16069368]
[1641300638875,48.72385561,170.92,170.81,34.16069368]
[1641300639375,48.72385561,170.92,170.81,32.734]
[1641300639779,48.72385561,170.92,170.81,32.234]
[1641300641077,48.72385561,170.92,170.81,32.734]
[1641300643480,48.72385561,170.92,170.81,9.23]
[1641300645079,48.72385561,170.92,170.81,10.4994]
[1641300646781,24.7568,170.92,170.81,10.4994]
[1641300647183,24.7568,170.92,170.81,21.62467755]
[1641300647883,24.7568,170.92,170.82,2.80708227]
[1641300648084,24.7568,170.92,170.83,8.47]
[1641300648487,24.7568,170.92,170.83,10.65669368]
[1641300649386,24.7568,170.92,170.83,19.43269368]
[1641300651789,2.29010601,170.93,170.83,19.43269368]
[1641300651990,2.29010601,170.93,170.84,1.42669368]
[1641300652189,2.29010601,170.93,170.85,8.47]
[1641300652392,2.29010601,170.93,170.85,8.97]
[1641300653621,2.29010601,170.93,170.85,9.23]
[1641300660626,2.29010601,170.93,170.85,8.97]
[1641300662042,2.29010601,170.93,170.85,9.23]
[1641300663544,1.2457,170.92,170.85,9.23]
[1641300666773,1.2457,170.92,170.85,8.73]
[1641300668377,1.2457,170.92,170.85,9.23]
[1641300670980,25.9658565,170.91,170.85,9.23]
[1641300672782,25.9658565,170.91,170.85,8.73]
[1641300674584,25.9658565,170.91,170.85,9.23]
[1641300675888,1.2457,170.92,170.85,9.23]
[1641300679796,2.29010601,170.93,170.85,9.23]
[1641300679995,2.29010601,170.93,170.85,8.97]
[1641300680997,34.20540932,170.93,170.85,8.97]
[1641300681694,25.775,170.92,170.85,8.97]
[1641300682096,25.775,170.92,170.85,9.23]
[1641300683198,25.775,170.92,170.85,8.97]
[1641300683401,26.035,170.92,170.85,8.97]
[1641300684624,26.035,170.92,170.85,9.23]
[1641300686626,25.775,170.92,170.85,9.23]
[1641300687627,1.2849,170.96,170.85,9.23]
[1641300687827,1.2476,170.95,170.85,14.959]
[1641300688530,2.86985355,170.94,170.85,14.959]
[1641300689727,2.86985355,170.94,170.85,9.23]
[1641300693331,2.86985355,170.94,170.85,8.97]
[1641300694833,2.86985355,170.94,170.85,9.23]
[1641300697836,2.86985355,170.94,170.85,8.97]
[1641300698334,1.323,170.95,170.85,8.97]
[1641300699138,2.38664502,170.94,170.85,9.23]
[1641300708147,1.3378,170.93,170.85,9.23]
[1641300715572,1.3378,170.93,170.85,8.97]
[1641300715971,25.1777,170.93,170.85,8.97]
[1641300718272,25.1777,170.93,170.85,9.23]
[1641300722475,25.4377,170.93,170.85,8.97]
[1641300724475,25.4377,170.93,170.85,9.23]
[1641300729587,25.1777,170.93,170.85,9.23]
[1641300741298,1.038174,170.87,170.85,9.23]
[1641300741701,1.038174,170.87,170.86,6.06439992]
[1641300741899,1.038174,170.87,170.86,15.03439992]
[1641300742099,1.038174,170.87,170.86,15.29439992]
[1641300753035,7.4e-05,170.87,170.86,16.7210936]
[1641300753434,7.4e-05,170.87,170.86,25.4951936]
[1641300754435,0.02,170.88,170.86,16.7210936]
[1641300754635,0.02,170.88,170.87,32.773926]
[1641300754835,0.02,170.88,170.87,17.743926]
[1641300755035,0.02,170.88,170.87,18.003926]
[1641300755234,0.02,170.88,170.87,44.59081349]
[1641300755638,0.02,170.88,170.87,52.11681349]
[1641300756241,2.21412387,170.95,170.87,52.11681349]
[1641300756439,24.7407,170.96,170.87,52.11681349]
[1641300756639,0.02,170.89,170.87,52.11681349]
[1641300756838,0.02,170.89,170.88,3.03219997]
[1641300757039,0.02,170.89,170.88,14.79439992]
[1641300757239,0.02,170.89,170.88,15.29439992]
[1641300758340,33.09319186,170.95,170.88,15.29439992]
[1641300758744,34.41099186,170.95,170.88,15.29439992]
[1641300762047,1.0731402,170.9,170.88,15.29439992]
[1641300764480,1.0731402,170.9,170.88,8.97]
[1641300765479,1.0731402,170.9,170.89,6.06439992]
[1641300765880,1.0731402,170.9,170.89,6.82439992]
[1641300766685,1.0731402,170.9,170.89,0.76]
[1641300766884,1.0731402,170.9,170.88,0.5]
[1641300767283,1.0731402,170.9,170.86,8.97]
[1641300768285,1.0731402,170.9,170.86,9.23]
[1641300769190,1.0731402,170.9,170.86,8.73]
[1641300770487,1.0731402,170.9,170.86,9.23]
[1641300789944,1.0731402,170.9,170.86,8.97]
[1641300791242,1.0731402,170.9,170.86,9.23]
[1641300793246,1.0731402,170.9,170.87,1.42669368]
[1641300793445,1.0731402,170.9,170.88,8.47]
[1641300793646,1.0731402,170.9,170.88,14.53439992]
[1641300793945,1.0731402,170.9,170.89,48.42669368]
[1641300794145,4.02e-05,170.9,170.89,9.89669368]
[1641300794348,4.02e-05,170.9,170.89,11.90549368]
[1641300796148,4.02e-05,170.9,170.89,20.67849368]
[1641300798453,4.02e-05,170.9,170.89,11.90549368]
[1641300801759,0.02,170.92,170.89,11.90549368]
[1641300802055,0.02,170.92,170.9,6.06439992]
[1641300802255,1.3284,170.98,170.91,8.47]
[1641300802556,0.02,170.94,170.91,9.23]
[1641300803356,0.02,170.94,170.92,6.06439992]
[1641300803655,0.02,170.94,170.92,6.32439992]
[1641300803857,0.02,170.94,170.92,6.82439992]
[1641300804257,1.3284,170.98,170.92,6.82439992]
[1641300809864,1.3284,170.98,170.92,6.56439992]
[1641300810267,1.3284,170.98,170.92,0.5]
[1641300810466,1.3284,170.98,170.91,0.5]
[1641300810867,1.63167497,170.99,170.89,1.7488]
[1641300811065,1.63167497,170.99,170.89,1.2488]
[1641300811265,1.63167497,170.99,170.89,1.7488]
[1641300811266,1.2763,170.98,170.89,1.7488]
[1641300811667,1.2763,170.98,170.89,2.0088]
[1641300814574,1.2763,170.98,170.89,0.5]
[1641300814774,1.5363,170.98,170.89,0.5]
[1641300814999,1.5363,170.98,170.86,1.42669368]
[1641300815000,1.5363,170.98,170.86,0.5]
[1641300815200,1.5363,170.98,170.85,0.5]
[1641300815401,10.5063,170.98,170.83,1.92669368]
[1641300815601,2.21781749,170.96,170.83,1.42669368]
[1641300815803,23.7412,170.95,170.83,1.92669368]
[1641300816000,24.0012,170.95,170.83,1.92669368]
[1641300816401,28.88209566,170.93,170.83,1.92669368]
[1641300816601,23.9154,170.92,170.83,1.92669368]
[1641300817202,2.64405023,170.9,170.83,1.92669368]
[1641300817902,2.64405023,170.9,170.83,2.18669368]
[1641300820007,1.3365,170.91,170.83,2.18669368]
[1641300821309,23.9154,170.92,170.84,8.47]
[1641300821507,2.71503941,170.94,170.84,8.73]
[1641300821707,2.71503941,170.94,170.85,1.42669368]
[1641300821908,2.71503941,170.94,170.85,1.92669368]
[1641300822108,2.71503941,170.94,170.85,2.18669368]
[1641300822310,2.71503941,170.94,170.86,1.42669368]
[1641300822509,2.71503941,170.94,170.86,1.68669368]
[1641300822809,55.55550084,170.95,170.86,2.18669368]
[1641300823009,55.55550084,170.95,170.87,1.42669368]
[1641300823412,55.55550084,170.95,170.87,2.18669368]
[1641300824010,2.60334334,170.94,170.88,1.42669368]
[1641300824410,2.60334334,170.94,170.88,2.18669368]
[1641300824815,2.60334334,170.94,170.89,1.42669368]
[1641300825015,2.60334334,170.94,170.89,1.68669368]
[1641300825213,2.60334334,170.94,170.89,2.18669368]
[1641300828615,2.60334334,170.94,170.89,0.5]
[1641300829015,2.60334334,170.94,170.86,10.39669368]
[1641300830018,2.60334334,170.94,170.86,10.65669368]
[1641300830218,2.60334334,170.94,170.86,10.39669368]
[1641300831619,2.60334334,170.94,170.86,10.65669368]
[1641300842058,25.7067,170.95,170.86,10.65669368]
[1641300842458,24.4044,170.95,170.86,10.65669368]
[1641300843259,2.85050412,170.94,170.86,10.65669368]
[1641300845160,25.7434,170.95,170.86,10.65669368]
[1641300845362,0.02,170.99,170.88,8.7731]
[1641300845567,0.02,170.99,170.89,8.47]
[1641300845766,0.02,170.99,170.89,9.89669368]
[1641300845961,0.02,170.99,170.89,9.23]
[1641300846162,2.69862834,171.0,170.9,2.65709368]
[1641300846361,2.69862834,171.0,170.91,8.47]
[1641300846565,2.69862834,171.0,170.91,10.15669368]
[1641300846761,2.69862834,171.0,170.92,1.42669368]
[1641300846961,2.69862834,171.0,170.92,10.65669368]
[1641300847365,2.69862834,171.0,170.93,1.42669368]
[1641300847563,2.69862834,171.0,170.93,1.68669368]
[1641300847763,2.69862834,171.0,170.93,2.18669368]
[1641300847964,2.69862834,171.0,170.94,1.42669368]
[1641300848365,2.69862834,171.0,170.94,1.92669368]
[1641300849769,2.69862834,171.0,170.94,2.18669368]
[1641300851567,2.69862834,171.0,170.95,1.42669368]
[1641300851969,2.69862834,171.0,170.95,2.18669368]
[1641300856173,2.69862834,171.0,170.95,0.5]
[1641300856472,2.69862834,171.0,170.92,10.2848]
[1641300857274,29.40381063,171.04,170.92,10.2848]
[1641300857275,11.90520052,171.29,171.23,2.78650957]
[1641300857573,32.07370586,171.38,171.37,52.56241788]
[1641300857574,31.52132684,171.38,171.37,52.56241788]
[1641300857973,31.52132684,171.38,171.33,8.47]
[1641300858173,25.72341248,171.37,171.33,8.47]
[1641300858373,0.02,171.39,171.36,105.84]
[1641300858575,0.02,171.39,171.38,105.84]
[1641300858779,0.02,171.39,171.38,114.31]
[1641300858974,0.02,171.39,171.38,115.07]
[1641300859175,0.02,171.39,171.38,125.07]
[1641300860376,27.71593357,171.44,171.38,128.10219995]
[1641300860679,27.71593357,171.44,171.41,105.84]
[1641300860876,27.71593357,171.44,171.42,11.50219997]
[1641300861577,27.71593357,171.44,171.43,3.03219995]
[1641300861879,27.71593357,171.44,171.43,11.50219995]
[1641300862079,27.71593357,171.44,171.41,8.47]
[1641300862080,27.97593357,171.44,171.41,8.47]
[1641300862279,28.47593357,171.44,171.39,10.0]
[1641300862682,30.85978906,171.44,171.31,105.84]
[1641300862978,30.85978906,171.44,171.38,0.5]
[1641300863277,28.47593357,171.44,171.38,7.4703]
[1641300863679,9.56982709,171.45,171.34,8.47]
[1641300863879,22.6163,171.55,171.34,8.47]
[1641300863880,63.83182691,171.54,171.34,8.47]
[1641300864079,1.42669368,171.43,171.34,8.47]
[1641300864277,2.83817367,171.42,171.34,8.47]
[1641300865077,4.04053007,171.54,171.34,8.47]
[1641300865277,2.79728359,171.53,171.34,8.47]
[1641300865477,8.47,171.52,171.34,8.47]
[1641300865678,8.47,171.52,171.35,29.67]
[1641300866177,8.47,171.52,171.33,22.80302224]
[1641300866376,8.47,171.52,171.33,23.30302224]
[1641300866577,4.38170988,171.5,171.33,23.30302224]
[1641300866778,12.85170988,171.5,171.33,23.30302224]
[1641300867188,6.58206996,171.49,171.33,23.30302224]
[1641300867407,7.08206996,171.49,171.33,23.30302224]
[1641300867577,7.34206996,171.49,171.33,0.5]
[1641300867778,2.40715467,171.47,171.28,8.47]
[1641300867978,8.47,171.46,171.28,8.97]
[1641300868385,15.81206996,171.46,171.28,8.97]
[1641300868580,10.89939633,171.45,171.28,32.32632976]
[1641300868779,2.49591604,171.44,171.28,32.32632976]
[1641300868979,3.25591604,171.44,171.28,32.58632976]
[1641300869184,3.25591604,171.44,171.28,8.47]
[1641300869382,8.47,171.43,171.29,29.27]
[1641300869681,8.47,171.43,171.22,8.47]
[1641300869682,16.036,171.43,171.22,8.47]
[1641300869884,16.536,171.43,171.22,8.47]
[1641300870081,16.536,171.43,171.19,8.47]
[1641300870482,122.376,171.43,171.19,8.47]
[1641300870881,122.376,171.43,171.27,29.27]
[1641300871082,122.376,171.43,171.19,8.47]
[1641300871281,56.53454325,171.43,171.19,8.47]
[1641300871483,57.29454325,171.43,171.19,8.47]
[1641300871886,57.29454325,171.43,171.26,42.03157987]
[1641300872489,57.29454325,171.43,171.19,8.47]
[1641300872683,4.76204102,171.41,171.2,26.27074302]
[1641300872884,8.47,171.4,171.2,26.77074302]
[1641300873085,8.47,171.4,171.2,0.5]
[1641300873285,8.97,171.4,171.2,0.5]
[1641300873486,8.97,171.4,171.19,8.97]
[1641300873686,6.58459608,171.39,171.19,8.97]
[1641300873886,11.35318109,171.38,171.19,8.97]
[1641300874088,10.89939633,171.37,171.2,26.29575483]
[1641300874287,10.89939633,171.37,171.21,8.47]
[1641300874487,10.89939633,171.37,171.21,9.23]
[1641300875487,6.58459608,171.36,171.21,9.23]
[1641300875689,2.24391485,171.35,171.22,1.42669368]
[1641300875888,2.24391485,171.35,171.23,8.47]
[1641300876087,2.50391485,171.35,171.23,8.73]
[1641300876288,2.50391485,171.35,171.23,9.23]
[1641300877088,2.24391485,171.35,171.23,8.97]
[1641300878488,2.24391485,171.35,171.24,26.02243538]
[1641300878693,2.24391485,171.35,171.25,8.47]
[1641300878891,2.24391485,171.35,171.25,8.97]
[1641300879088,2.50391485,171.35,171.25,8.97]
[1641300879890,0.26,171.35,171.25,8.97]
[1641300880092,0.26,171.37,171.25,8.97]
[1641300880491,31.2786,171.41,171.26,1.42669368]
[1641300880691,22.8086,171.41,171.26,8.47]
[1641300880893,2.63547462,171.4,171.26,9.23]
[1641300881090,2.63547462,171.4,171.26,10.65669368]
[1641300881692,9.21805731,171.4,171.26,10.65669368]
[1641300882192,9.21805731,171.4,171.26,9.23]
[1641300882419,9.21805731,171.4,171.27,10.0]
[1641300882594,2.89547462,171.4,171.28,8.47]
[1641300882996,2.89547462,171.4,171.28,9.23]
[1641300883196,6.58256558,171.39,171.28,9.23]
[1641300883399,6.58256558,171.39,171.29,10.0]
[1641300883597,6.84256558,171.39,171.29,10.0]
[1641300883797,6.58256558,171.39,171.29,10.76]
[1641300884199,6.58256558,171.39,171.29,0.76]
[1641300884400,6.58256558,171.39,171.28,9.23]
[1641300885601,2.63547462,171.4,171.28,9.23]
[1641300885805,2.89547462,171.4,171.28,9.23]
[1641300888002,2.63547462,171.4,171.28,9.23]
[1641300888203,2.63547462,171.4,171.29,40.61502221]
[1641300888406,2.63547462,171.4,171.3,8.47]
[1641300888607,2.63547462,171.4,171.3,8.73]
[1641300888805,2.63547462,171.4,171.3,9.23]
[1641300892234,2.63547462,171.4,171.3,8.97]
[1641300893684,2.63547462,171.4,171.25,105.84]
[1641300893685,2.63547462,171.4,171.25,8.47]
[1641300893843,18.83447462,171.4,171.25,8.47]
[1641300894046,1.42669368,171.39,171.23,550.30445996]
[1641300894245,8.47,171.38,171.23,550.30445996]
[1641300894445,3.00121883,171.37,171.23,550.30445996]
[1641300894645,16.27666384,171.37,171.23,550.30445996]
[1641300894845,14.84997016,171.37,171.23,550.80445996]
[1641300895046,15.34997016,171.37,171.23,550.80445996]
[1641300895246,6.58245271,171.36,171.23,550.80445996]
[1641300895447,6.58245271,171.36,171.23,0.5]
[1641300895649,6.58245271,171.36,171.21,8.97]
[1641300896047,8.47,171.35,171.21,0.5]
[1641300896250,2.4030655,171.34,171.21,0.5]
[1641300896451,2.4030655,171.34,171.19,3.1354]
[1641300897150,8.47,171.33,171.19,0.5]
[1641300897350,8.97,171.33,171.16,10.39669368]
[1641300897551,9.83212381,171.32,171.16,10.39669368]
[1641300897950,2.94079849,171.3,171.16,10.39669368]
[1641300898452,2.94079849,171.3,171.16,8.97]
[1641300899850,3.44079849,171.3,171.16,8.97]
[1641300900454,11.91079849,171.3,171.16,8.97]
[1641300900656,6.5859232,171.29,171.16,8.97]
[1641300900855,7.0859232,171.29,171.16,8.97]
[1641300901054,3.37875133,171.28,171.16,8.97]
[1641300901476,3.87875133,171.28,171.16,8.97]
[1641300901679,3.05491575,171.27,171.16,8.97]
[1641300901877,3.55491575,171.27,171.16,8.97]
[1641300902277,3.05491575,171.27,171.16,8.97]
[1641300904180,3.05491575,171.27,171.16,10.39669368]
[1641300910190,24.6613,171.32,171.16,16.58169368]
[1641300910384,79.8025,171.35,171.16,26.37823344]